{"text_format":"1","workbook":"xlsx","n_sheets":5,"sheets":["README_FIRST","Gantt-Chart","Init","Data","Sprachdaten"],"not_rendered":{"charts":0,"images":3,"macros":1,"external_links":0,"defined_names":40,"comments":1,"pivot_tables":0},"unopened":[],"bounds":{"document_bytes":16777216,"sheet_cells":100000,"rows_first":2000,"rows_last":500,"rows_between":2000,"halvings":0,"cell_chars":16384,"cell_head_chars":4096},"cells_cut":0,"cells_raw":0,"read":"whole","date_system":"1900"}

{"sheet":"README_FIRST","index":0,"n_rows":34,"n_cols":2,"rows_kept":34,"cut":false,"hidden":false,"merged":[]}
[]
[null,"Gantt-Chart tab must be the second tab of the workbook."]
[]
[null,"Migration problem to Calc:"]
[null,"Userform in Excel:"]
[]
[]
[]
[]
[]
[]
[]
[]
[]
[]
[]
[]
[]
[]
[]
[]
[]
[]
[]
[]
[]
[]
[]
[]
[]
[]
[]
[]
[null,"Same Userform in Calc with missing elements in design mode:"]

{"sheet":"Gantt-Chart","index":1,"n_rows":13,"n_cols":31,"rows_kept":13,"cut":false,"hidden":false,"merged":[[3,22,3,25],[3,26,3,29],[3,4,3,5],[3,7,3,8],[3,11,4,11],[3,13,3,16],[3,17,3,21]]}
["MY PROJECT"]
[]
[]
["ID","Description","Respon-","Prede-","Begin",null,"Duration","End",null,"Expend.","PoC","Remarks",null,"April 2013",null,null,null,"May 2013",null,null,null,null,"June 2013",null,null,null,"July 2013",null,null,null,"August 2013"]
[null,null,"sible","cessor(s)",null,null,"[Days]",null,null,"[Days]","[%]",null,null,"CW 14","CW 15","CW 16","CW 17","CW 18","CW 19","CW 20","CW 21","CW 22","CW 23","CW 24","CW 25","CW 26","CW 27","CW 28","CW 29","CW 30","CW 31"]
[]
[1,"TASK 1","CONTRIBUTORS 1 and 2",null,"2013-04-01","00:00",11,"2013-04-15T23:59:00","23:59",30,0.5]
[2,"TASK 2","CONTRIBUTOR 3",1,"2013-04-16","00:00",10,"2013-04-29T23:59:00","00:00",14]
[3,"TASK 3","CONTRIBUTOR 4",2,"2013-04-30","00:00",8,"2013-05-09T23:59:00","00:00",10]
[4,"TASK 4","CONTRIBUTOR 5",null,"2013-04-05","00:00",20,"2013-05-02T23:59:00","00:00",28,0.4]
[5,"TASK 5","CONTRIBUTOR 6",3,"2013-05-10","00:00",12,"2013-05-27T23:59:00","00:00",18]
[6,"TASK 6","CONTRIBUTORS 7 and 8",2,"2013-04-30","00:00",4,"2013-05-04T23:59:00","00:00",10,0.25]
[7,"TASK 7","CONTIBUTOR 9",6,"2013-05-05","00:00",5,"2013-05-10T23:59:00","23:59",5]

{"sheet":"Init","index":2,"n_rows":26,"n_cols":3,"rows_kept":26,"cut":false,"hidden":true,"merged":[]}
["Projekt-Eigenschaften"]
[]
["Projektname","MY PROJECT"]
["Projektleiter/in","E. DAVANTURE"]
["Beginn des Projektes","2013-04-01","2013-04-01"]
["Ende des Projektes","2013-07-31T23:59:00","2013-07-31T23:59:00"]
["Zeiteinheit auf der Zeitachse",3]
["Units",1]
["Arbeitstage / Kalendertage",0]
["Datumsformat",0]
["Darstellung Zeitskala",0]
["Aktuelle Tageslinie zeichnen",true]
["Wochenende grau darstellen",true]
["Kritischer Pfad",true]
["Ausdruck auf 1 Seite anpassen",true]
["Druckbereich dynamisch anpassen",false]
["Objekte neu erstellen",false]
["Sprache",0]
["Tabellen",0]
["Farbe Balken",41]
["Farbe Prozess",3]
["Farbe Meilenstein",1]
["Farbe Linie",1]
["Farbe Kritischer Pfad",3]
["Farbe Wochenende",40]
["Farbe Tageslinie",11]

{"sheet":"Data","index":3,"n_rows":244,"n_cols":5,"rows_kept":244,"cut":false,"hidden":true,"merged":[]}
["Arbeitstage","Spalten-Datum","Spalten-Nr.","ID Bemerkungen","Rel.Pos. Bemerkungen"]
[41359,41365,{"$f":"COLUMN('Gantt-Chart'!$N$1)","v":14}]
[41360,41372,{"$f":"COLUMN('Gantt-Chart'!$O$1)","v":15}]
[41361,41379,{"$f":"COLUMN('Gantt-Chart'!$P$1)","v":16}]
[41362,41386,{"$f":"COLUMN('Gantt-Chart'!$Q$1)","v":17}]
[41365,41393,{"$f":"COLUMN('Gantt-Chart'!$R$1)","v":18}]
[41366,41400,{"$f":"COLUMN('Gantt-Chart'!$S$1)","v":19}]
[41367,41407,{"$f":"COLUMN('Gantt-Chart'!$T$1)","v":20}]
[41368,41414,{"$f":"COLUMN('Gantt-Chart'!$U$1)","v":21}]
[41369,41421,{"$f":"COLUMN('Gantt-Chart'!$V$1)","v":22}]
[41372,41428,{"$f":"COLUMN('Gantt-Chart'!$W$1)","v":23}]
[41373,41435,{"$f":"COLUMN('Gantt-Chart'!$X$1)","v":24}]
[41374,41442,{"$f":"COLUMN('Gantt-Chart'!$Y$1)","v":25}]
[41375,41449,{"$f":"COLUMN('Gantt-Chart'!$Z$1)","v":26}]
[41376,41456,{"$f":"COLUMN('Gantt-Chart'!$AA$1)","v":27}]
[41379,41463,{"$f":"COLUMN('Gantt-Chart'!$AB$1)","v":28}]
[41380,41470,{"$f":"COLUMN('Gantt-Chart'!$AC$1)","v":29}]
[41381,41477,{"$f":"COLUMN('Gantt-Chart'!$AD$1)","v":30}]
[41382,41484,{"$f":"COLUMN('Gantt-Chart'!$AE$1)","v":31}]
[41383,41491,{"$f":"COLUMN('Gantt-Chart'!$AF$1)","v":32}]
[41386,41498,{"$f":"COLUMN('Gantt-Chart'!$AG$1)","v":33}]
[41387,41505,{"$f":"COLUMN('Gantt-Chart'!$AH$1)","v":34}]
[41388,41512,{"$f":"COLUMN('Gantt-Chart'!$AI$1)","v":35}]
[41389,41519,{"$f":"COLUMN('Gantt-Chart'!$AJ$1)","v":36}]
[41390,41526,{"$f":"COLUMN('Gantt-Chart'!$AK$1)","v":37}]
[41393,41533,{"$f":"COLUMN('Gantt-Chart'!$AL$1)","v":38}]
[41394,41540,{"$f":"COLUMN('Gantt-Chart'!$AM$1)","v":39}]
[41395,41547,{"$f":"COLUMN('Gantt-Chart'!$AN$1)","v":40}]
[41396,41554,{"$f":"COLUMN('Gantt-Chart'!$AO$1)","v":41}]
[41397,41561,{"$f":"COLUMN('Gantt-Chart'!$AP$1)","v":42}]
[41400,41568,{"$f":"COLUMN('Gantt-Chart'!$AQ$1)","v":43}]
[41401,41575,{"$f":"COLUMN('Gantt-Chart'!$AR$1)","v":44}]
[41402,41582,{"$f":"COLUMN('Gantt-Chart'!$AS$1)","v":45}]
[41403,41589,{"$f":"COLUMN('Gantt-Chart'!$AT$1)","v":46}]
[41404,41596,{"$f":"COLUMN('Gantt-Chart'!$AU$1)","v":47}]
[41407,41603,{"$f":"COLUMN('Gantt-Chart'!$AV$1)","v":48}]
[41408,41610,{"$f":"COLUMN('Gantt-Chart'!$AW$1)","v":49}]
[41409,41617,{"$f":"COLUMN('Gantt-Chart'!$AX$1)","v":50}]
[41410,41624,{"$f":"COLUMN('Gantt-Chart'!$AY$1)","v":51}]
[41411,41631,{"$f":"COLUMN('Gantt-Chart'!$AZ$1)","v":52}]
[41414,41638,{"$f":"COLUMN('Gantt-Chart'!$BA$1)","v":53}]
[41415,41645,{"$f":"COLUMN('Gantt-Chart'!$BB$1)","v":54}]
[41416,41652,{"$f":"COLUMN('Gantt-Chart'!$BC$1)","v":55}]
[41417,41659,{"$f":"COLUMN('Gantt-Chart'!$BD$1)","v":56}]
[41418,41666,{"$f":"COLUMN('Gantt-Chart'!$BE$1)","v":57}]
[41421,41673,{"$f":"COLUMN('Gantt-Chart'!$BF$1)","v":58}]
[41422,41680,{"$f":"COLUMN('Gantt-Chart'!$BG$1)","v":59}]
[41423,41687,{"$f":"COLUMN('Gantt-Chart'!$BH$1)","v":60}]
[41424,41694,{"$f":"COLUMN('Gantt-Chart'!$BI$1)","v":61}]
[41425,41701,{"$f":"COLUMN('Gantt-Chart'!$BJ$1)","v":62}]
[41428,41708,{"$f":"COLUMN('Gantt-Chart'!$BK$1)","v":63}]
[41429,41715,{"$f":"COLUMN('Gantt-Chart'!$BL$1)","v":64}]
[41430,41722,{"$f":"COLUMN('Gantt-Chart'!$BM$1)","v":65}]
[41431,41729,{"$f":"COLUMN('Gantt-Chart'!$BN$1)","v":66}]
[41432,41736,{"$f":"COLUMN('Gantt-Chart'!$BO$1)","v":67}]
[41435,41743,{"$f":"COLUMN('Gantt-Chart'!$BP$1)","v":68}]
[41436,41750,{"$f":"COLUMN('Gantt-Chart'!$BQ$1)","v":69}]
[41437,41757,{"$f":"COLUMN('Gantt-Chart'!$BR$1)","v":70}]
[41438,41764,{"$f":"COLUMN('Gantt-Chart'!$BS$1)","v":71}]
[41439,41771,{"$f":"COLUMN('Gantt-Chart'!$BT$1)","v":72}]
[41442,41778,{"$f":"COLUMN('Gantt-Chart'!$BU$1)","v":73}]
[41443,41785,{"$f":"COLUMN('Gantt-Chart'!$BV$1)","v":74}]
[41444,41792,{"$f":"COLUMN('Gantt-Chart'!$BW$1)","v":75}]
[41445,41799,{"$f":"COLUMN('Gantt-Chart'!$BX$1)","v":76}]
[41446,41806,{"$f":"COLUMN('Gantt-Chart'!$BY$1)","v":77}]
[41449,41813,{"$f":"COLUMN('Gantt-Chart'!$BZ$1)","v":78}]
[41450,41820,{"$f":"COLUMN('Gantt-Chart'!$CA$1)","v":79}]
[41451,41827,{"$f":"COLUMN('Gantt-Chart'!$CB$1)","v":80}]
[41452,41834,{"$f":"COLUMN('Gantt-Chart'!$CC$1)","v":81}]
[41453,41841,{"$f":"COLUMN('Gantt-Chart'!$CD$1)","v":82}]
[41456,41848,{"$f":"COLUMN('Gantt-Chart'!$CE$1)","v":83}]
[41457,41855,{"$f":"COLUMN('Gantt-Chart'!$CF$1)","v":84}]
[41458,41862,{"$f":"COLUMN('Gantt-Chart'!$CG$1)","v":85}]
[41459,41869,{"$f":"COLUMN('Gantt-Chart'!$CH$1)","v":86}]
[41460,41876,{"$f":"COLUMN('Gantt-Chart'!$CI$1)","v":87}]
[41463,41883,{"$f":"COLUMN('Gantt-Chart'!$CJ$1)","v":88}]
[41464,41890,{"$f":"COLUMN('Gantt-Chart'!$CK$1)","v":89}]
[41465,41897,{"$f":"COLUMN('Gantt-Chart'!$CL$1)","v":90}]
[41466,41904,{"$f":"COLUMN('Gantt-Chart'!$CM$1)","v":91}]
[41467,41911,{"$f":"COLUMN('Gantt-Chart'!$CN$1)","v":92}]
[41470,41918,{"$f":"COLUMN('Gantt-Chart'!$CO$1)","v":93}]
[41471,41925,{"$f":"COLUMN('Gantt-Chart'!$CP$1)","v":94}]
[41472,41932,{"$f":"COLUMN('Gantt-Chart'!$CQ$1)","v":95}]
[41473,41939,{"$f":"COLUMN('Gantt-Chart'!$CR$1)","v":96}]
[41474,41946,{"$f":"COLUMN('Gantt-Chart'!$CS$1)","v":97}]
[41477,41953,{"$f":"COLUMN('Gantt-Chart'!$CT$1)","v":98}]
[41478,41960,{"$f":"COLUMN('Gantt-Chart'!$CU$1)","v":99}]
[41479,41967,{"$f":"COLUMN('Gantt-Chart'!$CV$1)","v":100}]
[41480,41974,{"$f":"COLUMN('Gantt-Chart'!$CW$1)","v":101}]
[41481,41981,{"$f":"COLUMN('Gantt-Chart'!$CX$1)","v":102}]
[41484,41988,{"$f":"COLUMN('Gantt-Chart'!$CY$1)","v":103}]
[41485,41995,{"$f":"COLUMN('Gantt-Chart'!$CZ$1)","v":104}]
[41486,42002,{"$f":"COLUMN('Gantt-Chart'!$DA$1)","v":105}]
[41487,42009,{"$f":"COLUMN('Gantt-Chart'!$DB$1)","v":106}]
[41488,42016,{"$f":"COLUMN('Gantt-Chart'!$DC$1)","v":107}]
[41491,42023,{"$f":"COLUMN('Gantt-Chart'!$DD$1)","v":108}]
[41492,42030,{"$f":"COLUMN('Gantt-Chart'!$DE$1)","v":109}]
[41493,42037,{"$f":"COLUMN('Gantt-Chart'!$DF$1)","v":110}]
[41494,42044,{"$f":"COLUMN('Gantt-Chart'!$DG$1)","v":111}]
[41495,42051,{"$f":"COLUMN('Gantt-Chart'!$DH$1)","v":112}]
[41498,42058,{"$f":"COLUMN('Gantt-Chart'!$DI$1)","v":113}]
[41499,42065,{"$f":"COLUMN('Gantt-Chart'!$DJ$1)","v":114}]
[41500,42072,{"$f":"COLUMN('Gantt-Chart'!$DK$1)","v":115}]
[41501,42079,{"$f":"COLUMN('Gantt-Chart'!$DL$1)","v":116}]
[41502,42086,{"$f":"COLUMN('Gantt-Chart'!$DM$1)","v":117}]
[41505,42093,{"$f":"COLUMN('Gantt-Chart'!$DN$1)","v":118}]
[41506,42100,{"$f":"COLUMN('Gantt-Chart'!$DO$1)","v":119}]
[41507,42107,{"$f":"COLUMN('Gantt-Chart'!$DP$1)","v":120}]
[41508,42114,{"$f":"COLUMN('Gantt-Chart'!$DQ$1)","v":121}]
[41509,42121,{"$f":"COLUMN('Gantt-Chart'!$DR$1)","v":122}]
[41512,42128,{"$f":"COLUMN('Gantt-Chart'!$DS$1)","v":123}]
[41513,42135,{"$f":"COLUMN('Gantt-Chart'!$DT$1)","v":124}]
[41514,42142,{"$f":"COLUMN('Gantt-Chart'!$DU$1)","v":125}]
[41515,42149,{"$f":"COLUMN('Gantt-Chart'!$DV$1)","v":126}]
[41516,42156,{"$f":"COLUMN('Gantt-Chart'!$DW$1)","v":127}]
[41519,42163,{"$f":"COLUMN('Gantt-Chart'!$DX$1)","v":128}]
[null,42170,{"$f":"COLUMN('Gantt-Chart'!$DY$1)","v":129}]
[null,42177,{"$f":"COLUMN('Gantt-Chart'!$DZ$1)","v":130}]
[null,42184,{"$f":"COLUMN('Gantt-Chart'!$EA$1)","v":131}]
[null,42191,{"$f":"COLUMN('Gantt-Chart'!$EB$1)","v":132}]
[null,42198,{"$f":"COLUMN('Gantt-Chart'!$EC$1)","v":133}]
[null,42205,{"$f":"COLUMN('Gantt-Chart'!$ED$1)","v":134}]
[null,42212,{"$f":"COLUMN('Gantt-Chart'!$EE$1)","v":135}]
[null,42219,{"$f":"COLUMN('Gantt-Chart'!$EF$1)","v":136}]
[null,42226,{"$f":"COLUMN('Gantt-Chart'!$EG$1)","v":137}]
[null,42233,{"$f":"COLUMN('Gantt-Chart'!$EH$1)","v":138}]
[null,42240,{"$f":"COLUMN('Gantt-Chart'!$EI$1)","v":139}]
[null,42247,{"$f":"COLUMN('Gantt-Chart'!$EJ$1)","v":140}]
[null,42254,{"$f":"COLUMN('Gantt-Chart'!$EK$1)","v":141}]
[null,42261,{"$f":"COLUMN('Gantt-Chart'!$EL$1)","v":142}]
[null,42268,{"$f":"COLUMN('Gantt-Chart'!$EM$1)","v":143}]
[null,42275,{"$f":"COLUMN('Gantt-Chart'!$EN$1)","v":144}]
[null,42282,{"$f":"COLUMN('Gantt-Chart'!$EO$1)","v":145}]
[null,42289,{"$f":"COLUMN('Gantt-Chart'!$EP$1)","v":146}]
[null,42296,{"$f":"COLUMN('Gantt-Chart'!$EQ$1)","v":147}]
[null,42303,{"$f":"COLUMN('Gantt-Chart'!$ER$1)","v":148}]
[null,42310,{"$f":"COLUMN('Gantt-Chart'!$ES$1)","v":149}]
[null,42317,{"$f":"COLUMN('Gantt-Chart'!$ET$1)","v":150}]
[null,42324,{"$f":"COLUMN('Gantt-Chart'!$EU$1)","v":151}]
[null,42331,{"$f":"COLUMN('Gantt-Chart'!$EV$1)","v":152}]
[null,42338,{"$f":"COLUMN('Gantt-Chart'!$EW$1)","v":153}]
[null,42345,{"$f":"COLUMN('Gantt-Chart'!$EX$1)","v":154}]
[null,42352,{"$f":"COLUMN('Gantt-Chart'!$EY$1)","v":155}]
[null,42359,{"$f":"COLUMN('Gantt-Chart'!$EZ$1)","v":156}]
[null,42366,{"$f":"COLUMN('Gantt-Chart'!$FA$1)","v":157}]
[null,42373,{"$f":"COLUMN('Gantt-Chart'!$FB$1)","v":158}]
[null,42380,{"$f":"COLUMN('Gantt-Chart'!$FC$1)","v":159}]
[null,42387,{"$f":"COLUMN('Gantt-Chart'!$FD$1)","v":160}]
[null,42394,{"$f":"COLUMN('Gantt-Chart'!$FE$1)","v":161}]
[null,42401,{"$f":"COLUMN('Gantt-Chart'!$FF$1)","v":162}]
[null,42408,{"$f":"COLUMN('Gantt-Chart'!$FG$1)","v":163}]
[null,42415,{"$f":"COLUMN('Gantt-Chart'!$FH$1)","v":164}]
[null,42422,{"$f":"COLUMN('Gantt-Chart'!$FI$1)","v":165}]
[null,42429,{"$f":"COLUMN('Gantt-Chart'!$FJ$1)","v":166}]
[null,42436,{"$f":"COLUMN('Gantt-Chart'!$FK$1)","v":167}]
[null,42443,{"$f":"COLUMN('Gantt-Chart'!$FL$1)","v":168}]
[null,42450,{"$f":"COLUMN('Gantt-Chart'!$FM$1)","v":169}]
[null,42457,{"$f":"COLUMN('Gantt-Chart'!$FN$1)","v":170}]
[null,42464,{"$f":"COLUMN('Gantt-Chart'!$FO$1)","v":171}]
[null,42471,{"$f":"COLUMN('Gantt-Chart'!$FP$1)","v":172}]
[null,42478,{"$f":"COLUMN('Gantt-Chart'!$FQ$1)","v":173}]
[null,42485,{"$f":"COLUMN('Gantt-Chart'!$FR$1)","v":174}]
[null,42492,{"$f":"COLUMN('Gantt-Chart'!$FS$1)","v":175}]
[null,42499,{"$f":"COLUMN('Gantt-Chart'!$FT$1)","v":176}]
[null,42506,{"$f":"COLUMN('Gantt-Chart'!$FU$1)","v":177}]
[null,42513,{"$f":"COLUMN('Gantt-Chart'!$FV$1)","v":178}]
[null,42520,{"$f":"COLUMN('Gantt-Chart'!$FW$1)","v":179}]
[null,42527,{"$f":"COLUMN('Gantt-Chart'!$FX$1)","v":180}]
[null,42534,{"$f":"COLUMN('Gantt-Chart'!$FY$1)","v":181}]
[null,42541,{"$f":"COLUMN('Gantt-Chart'!$FZ$1)","v":182}]
[null,42548,{"$f":"COLUMN('Gantt-Chart'!$GA$1)","v":183}]
[null,42555,{"$f":"COLUMN('Gantt-Chart'!$GB$1)","v":184}]
[null,42562,{"$f":"COLUMN('Gantt-Chart'!$GC$1)","v":185}]
[null,42569,{"$f":"COLUMN('Gantt-Chart'!$GD$1)","v":186}]
[null,42576,{"$f":"COLUMN('Gantt-Chart'!$GE$1)","v":187}]
[null,42583,{"$f":"COLUMN('Gantt-Chart'!$GF$1)","v":188}]
[null,42590,{"$f":"COLUMN('Gantt-Chart'!$GG$1)","v":189}]
[null,42597,{"$f":"COLUMN('Gantt-Chart'!$GH$1)","v":190}]
[null,42604,{"$f":"COLUMN('Gantt-Chart'!$GI$1)","v":191}]
[null,42611,{"$f":"COLUMN('Gantt-Chart'!$GJ$1)","v":192}]
[null,42618,{"$f":"COLUMN('Gantt-Chart'!$GK$1)","v":193}]
[null,42625,{"$f":"COLUMN('Gantt-Chart'!$GL$1)","v":194}]
[null,42632,{"$f":"COLUMN('Gantt-Chart'!$GM$1)","v":195}]
[null,42639,{"$f":"COLUMN('Gantt-Chart'!$GN$1)","v":196}]
[null,42646,{"$f":"COLUMN('Gantt-Chart'!$GO$1)","v":197}]
[null,42653,{"$f":"COLUMN('Gantt-Chart'!$GP$1)","v":198}]
[null,42660,{"$f":"COLUMN('Gantt-Chart'!$GQ$1)","v":199}]
[null,42667,{"$f":"COLUMN('Gantt-Chart'!$GR$1)","v":200}]
[null,42674,{"$f":"COLUMN('Gantt-Chart'!$GS$1)","v":201}]
[null,42681,{"$f":"COLUMN('Gantt-Chart'!$GT$1)","v":202}]
[null,42688,{"$f":"COLUMN('Gantt-Chart'!$GU$1)","v":203}]
[null,42695,{"$f":"COLUMN('Gantt-Chart'!$GV$1)","v":204}]
[null,42702,{"$f":"COLUMN('Gantt-Chart'!$GW$1)","v":205}]
[null,42709,{"$f":"COLUMN('Gantt-Chart'!$GX$1)","v":206}]
[null,42716,{"$f":"COLUMN('Gantt-Chart'!$GY$1)","v":207}]
[null,42723,{"$f":"COLUMN('Gantt-Chart'!$GZ$1)","v":208}]
[null,42730,{"$f":"COLUMN('Gantt-Chart'!$HA$1)","v":209}]
[null,42737,{"$f":"COLUMN('Gantt-Chart'!$HB$1)","v":210}]
[null,42744,{"$f":"COLUMN('Gantt-Chart'!$HC$1)","v":211}]
[null,42751,{"$f":"COLUMN('Gantt-Chart'!$HD$1)","v":212}]
[null,42758,{"$f":"COLUMN('Gantt-Chart'!$HE$1)","v":213}]
[null,42765,{"$f":"COLUMN('Gantt-Chart'!$HF$1)","v":214}]
[null,42772,{"$f":"COLUMN('Gantt-Chart'!$HG$1)","v":215}]
[null,42779,{"$f":"COLUMN('Gantt-Chart'!$HH$1)","v":216}]
[null,42786,{"$f":"COLUMN('Gantt-Chart'!$HI$1)","v":217}]
[null,42793,{"$f":"COLUMN('Gantt-Chart'!$HJ$1)","v":218}]
[null,42800,{"$f":"COLUMN('Gantt-Chart'!$HK$1)","v":219}]
[null,42807,{"$f":"COLUMN('Gantt-Chart'!$HL$1)","v":220}]
[null,42814,{"$f":"COLUMN('Gantt-Chart'!$HM$1)","v":221}]
[null,42821,{"$f":"COLUMN('Gantt-Chart'!$HN$1)","v":222}]
[null,42828,{"$f":"COLUMN('Gantt-Chart'!$HO$1)","v":223}]
[null,42835,{"$f":"COLUMN('Gantt-Chart'!$HP$1)","v":224}]
[null,42842,{"$f":"COLUMN('Gantt-Chart'!$HQ$1)","v":225}]
[null,42849,{"$f":"COLUMN('Gantt-Chart'!$HR$1)","v":226}]
[null,42856,{"$f":"COLUMN('Gantt-Chart'!$HS$1)","v":227}]
[null,42863,{"$f":"COLUMN('Gantt-Chart'!$HT$1)","v":228}]
[null,42870,{"$f":"COLUMN('Gantt-Chart'!$HU$1)","v":229}]
[null,42877,{"$f":"COLUMN('Gantt-Chart'!$HV$1)","v":230}]
[null,42884,{"$f":"COLUMN('Gantt-Chart'!$HW$1)","v":231}]
[null,42891,{"$f":"COLUMN('Gantt-Chart'!$HX$1)","v":232}]
[null,42898,{"$f":"COLUMN('Gantt-Chart'!$HY$1)","v":233}]
[null,42905,{"$f":"COLUMN('Gantt-Chart'!$HZ$1)","v":234}]
[null,42912,{"$f":"COLUMN('Gantt-Chart'!$IA$1)","v":235}]
[null,42919,{"$f":"COLUMN('Gantt-Chart'!$IB$1)","v":236}]
[null,42926,{"$f":"COLUMN('Gantt-Chart'!$IC$1)","v":237}]
[null,42933,{"$f":"COLUMN('Gantt-Chart'!$ID$1)","v":238}]
[null,42940,{"$f":"COLUMN('Gantt-Chart'!$IE$1)","v":239}]
[null,42947,{"$f":"COLUMN('Gantt-Chart'!$IF$1)","v":240}]
[null,42954,{"$f":"COLUMN('Gantt-Chart'!$IG$1)","v":241}]
[null,42961,{"$f":"COLUMN('Gantt-Chart'!$IH$1)","v":242}]
[null,42968,{"$f":"COLUMN('Gantt-Chart'!$II$1)","v":243}]
[null,42975,{"$f":"COLUMN('Gantt-Chart'!$IJ$1)","v":244}]
[null,42982,{"$f":"COLUMN('Gantt-Chart'!$IK$1)","v":245}]
[null,42989,{"$f":"COLUMN('Gantt-Chart'!$IL$1)","v":246}]
[null,42996,{"$f":"COLUMN('Gantt-Chart'!$IM$1)","v":247}]
[null,43003,{"$f":"COLUMN('Gantt-Chart'!$IN$1)","v":248}]
[null,43010,{"$f":"COLUMN('Gantt-Chart'!$IO$1)","v":249}]
[null,43017,{"$f":"COLUMN('Gantt-Chart'!$IP$1)","v":250}]
[null,43024,{"$f":"COLUMN('Gantt-Chart'!$IQ$1)","v":251}]
[null,43031,{"$f":"COLUMN('Gantt-Chart'!$IR$1)","v":252}]
[null,43038,{"$f":"COLUMN('Gantt-Chart'!$IS$1)","v":253}]
[null,43045,{"$f":"COLUMN('Gantt-Chart'!$IT$1)","v":254}]
[null,43052,{"$f":"COLUMN('Gantt-Chart'!$IU$1)","v":255}]
[null,43059,{"$f":"COLUMN('Gantt-Chart'!$IV$1)","v":256}]

{"sheet":"Sprachdaten","index":4,"n_rows":147,"n_cols":7,"rows_kept":147,"cut":false,"hidden":true,"merged":[]}
["ID","english","deutsch","italiano","français","русский","danish"]
[]
[null,"[Registry Form]","[Registry Form]","[Registry Form]","[Registry Form]","[Registry Form]","[Registry Form]"]
[4,"Thank you for testing XL Project.","Vielen Dank, dass Sie XL Project testen.","Grazie della vostra prova con xlProject.","Merci de tester XL Project","Спасибо за тестирование XL Project.","Tak fordi du ville prøve XL Project."]
[5,"You are working with a unregistered version of XL Project.","Sie arbeiten mit einer unregistrierten Testversion von XL Project.","Lei sta lavorando con una versione non registrata.","Vous utilisez une version non enregistrée de XL Project","У Вас незарегистрированная версия XL Project.","Du arbejder med en ikke-registreret udgave af XL Project."]
[6,"This is day &s of your 30-day evaluation period.","Tag &s der 30-tägiger Evaluationszeit.","Trascorsi &s giorni di prova dei 30 permessi.","C'est le &s des 30 jours d'évaluation","Это &-й день Вашего периода пробного использования.","Dette er dag &s af din 30 dages prøveperiode."]
[7,"The 30 day trial period is over.","Die 30-tägige Evaluationszeit ist vorbei.","I 30 giorni di prova sono trascorsi.","La période d'évaluation de 30 jour est écoulée.","30-ти дневный период пробного использования закончился.","Dine 30 dages prøveperiode er slut."]
[8,"To order your copy of XL Project please visit our website:","Die Vollversion kann unter folgender Internet-Adresse bestellt werden:","La versione completa può essere comandata al seguente indirizzo:","Vous pouvez commander XL Project à l'adresse Internet suivante:","Для покупки Вашей копии XL Project пожалуйста, посетите наш сайт:","For at bestille din kopi af XL Project, besøg venligst vores hjemmeside:"]
[9,"Be sure to enter \"Version\" ,\"User name\" and \"Registration key\" exactly as shown in the email you received.","Wenn Sie XL Project gekauft haben, dann tragen Sie bitte in den nachfolgenden Feldern ihren \"Benutzernamen\" und den \"Registrierungs-Schlüssel\" ein.","Se avete comprato xlProject, per favore introdurre nei seguenti campi il nome dell'utilizzatore e il numero di serie del prodotto. ","Après l'achat de XL Project, vous recevrez un Email qui vous indiquera votre \"nom d''utilisateur\" et votre \"clé d'enregistrement\" qu'il vous faudra saisir à l'identique.","Введите \"Версию\", \"Имя пользовтеля\" и \"Регистрационный ключ\" в точности так же как в полученном Вами электронном письме.","Du skal indtaste \"Version\", \"Brugernavn\" og \"Registreringskode\" præcist som vist i den email du har modtaget."]
[10,"User name:","Benutzername:","Nome utilizzatore:","Nom d'utilisateur:","Имя пользователя:","Brugernavn:"]
[11,"Registration key:","Registrierungs-Schlüssel:","Numero di serie:","Clé d'enregistrement:","Регистрационный ключ:","Registreringskode:"]
[12,"Evaluate","Testen","Testare","Tester","Попробовать","Prøv"]
[13,"Register","Freischalten","Registrare","Déverrouiller","Зарегистрироваться","Registrer"]
[]
[]
[null,"[Worksheet Names]","[Worksheet Names]","[Worksheet Names]","[Worksheet Names]","[Worksheet Names]","[Worksheet Names]"]
[17,"Gantt Chart","Gantt-Chart","Diagramma di Gantt","Diagramme de Gantt","Диаграмма Гантта","Gantt diagram"]
[]
[]
[null,"[Control Panel]","[Control Panel]","[Control Panel]","[Control Panel]","[Control Panel]","[Control Panel]"]
[21,"Control Panel","Control Panel","Pannello di Controllo","Panneau de contrôle","Панель управления","Kontrol Panel"]
[22,"Project data","Projektdaten","Dati del progetto","Données du projet","Данные проекта","Projekt data"]
[23,"Format","Format","Formato","Format","Формат","Format"]
[24,"Colours / Language","Farben / Sprache","Colore/Lingua","Couleur / Langue","Цвета / Язык","Farver / Sprog"]
[25,"Process Sheet","Zeitperioden","Periodo di tempo","Feuille de temps","Лист процесса","Fremdriftskema"]
[26,"Establish / actualise project","Projekt erstellen / aktualisieren","Creare/Aggiornare progetto","Créer / Actualiser le projet","Создать / Выполнять","Opret / Udfør projekt"]
[]
[]
[null,"[Tab 1]","[Tab 1]","[Tab 1]","[Tab 1]","[Tab 1]","[Tab 1]"]
[30,"Project name","Projektname","Nome del progetto","Nom du projet","Название проекта","Projektnavn"]
[31,"Project manager","Projektleiter/in","Capoprogetto","Responssable du projet","Менеджер проекта","Projektleder"]
[32,"Begin of project","Beginn des Projektes","Inizio del progetto","Début du projet","Начало проекта","Projekt start"]
[33,"End of project","Ende des Projektes","Fine del progetto","Fin du projet","Окончание проекта","Projekt slut"]
[34,"Unit on time axis","Zeiteinheit auf der Zeitachse","Unità di tempo del progetto","Unité de temps","Единица измерения временной шкалы","Enheder på tidslinie"]
[35,"Working days / calendar days","Arbeitstage / Kalendertage","Settimana lavorativa / standard","Jours ouvrés / jours calendaires","Рабочие дни / календарные дни","Arbejdsdage / Kalenderdage"]
[36,"Use additional worksheets","Zusätzliche Tabellen verwenden","Utilizzare la tabella supplementare","Utiliser une feuille additionnelle","Использовать дополнительные листы","Tilføj nye arkfaner"]
[]
[]
[null,"[Tab 2]","[Tab 2]","[Tab 2]","[Tab 2]","[Tab 2]","[Tab 2]"]
[40,"Date format","Datumsformat","Formato data","Format des dates","Формат даты","Dato format"]
[41,"Alignment date","Darstellung Zeitskala","Rappresentare il periodo di tempo","Alignement sur le projet","Упорядочить даты","Juster"]
[42,"Paint actual dayline","Aktuelle Tageslinie zeichnen","Introduzione giorno attuale","Visualiser le jour actuel","Выделять линией текущую дату","Tegn aktuel datolinie"]
[43,"Display weekend in grey","Wochenende grau markieren","Giorni festivi in grigio","Griser les Week-End","Выделять выходные серым цветом","Vis weekend med gråtone"]
[44,"Adjust printout to 1 page","Ausdruck auf 1 Seite anpassen","Pagina unica di stampa","Ajuster l'impression sur 1 page","Вывод на печать на одной странице","Tilpas print til 1 side"]
[45,"Show critical path","Kritischer Pfad zeichnen","Mostrare periodo critico","Voir le chemin critique","Показывать критический путь","Vis kritisk vej"]
[46,"Adjust print area dynamically","Druckbereich dynamisch anpassen","Stampa fino a oggi","Ajuster la zone d'impression dynamiquement","Динамически настраивать область печати","Tilpas udskriftområde dynamisk"]
[47,"Recreate objects","Objekte neu erstellen","Creare nuovo oggetto","Redessiner les objets","Восстанавливать объекты","Genskab objekter"]
[]
[]
[null,"[Tab 3]","[Tab 3]","[Tab 3]","[Tab 3]","[Tab 3]","[Tab 3]"]
[51,"Colours","Farben","Colore","Couleurs","Цвета","Farver"]
[52,"Bar","Balken","Linea attività","Barre","Планка","Stav"]
[53,"Process","Prozess","Grado di attuazione","Process","Процесс","Fremdrift"]
[54,"Milestone","Meilenstein","Attività cardine","Point important","Веха","Milepæl"]
[55,"Lines","Linien","Linee","Lignes","Линии","Linier"]
[56,"Critical path","Kritischer Pfad","Periodo critico","Chemin critique","Критический путь","Kritisk vej"]
[57,"Weekend","Wochende","Fine Settimana","Week-End","Выходные","Weekend"]
[58,"Dayline","Tageslinie","Giorno attuale","Aujourd'hui","Линия текущей даты","Datolinie"]
[59,"Language / Version","Sprache / Version","Lingua/Versione","Langue / Version","Язык / Версия","Sprog / Version"]
[]
[]
[null,"[Tab 4]","[Tab 4]","[Tab 4]","[Tab 4]","[Tab 4]","[Tab 4]"]
[63,"Date","Datum","Data","Date","Дата","Dato"]
[64,"Begin","Beginn","Inizio","Début","Начало","Start"]
[65,"End","Ende","Fine","Fin","Окончание","Slut"]
[]
[]
[null,"[PopUp-Fields]","[PopUp-Fields]","[PopUp-Fields]","[PopUp-Fields]","[PopUp-Fields]","[PopUp-Fields]"]
[69,"yes","ja","Si","oui","да","Ja"]
[70,"no","nein","No","non","нет","Nej"]
[71,"Year","Jahr","Anno","Année","Год","År"]
[72,"Quarter","Quartal","Quadrimestre","Trimestre","Квартал","Kvartal"]
[73,"Month","Monat","Mese","Mois","Месяц","Måned"]
[74,"Week","Woche","Settimana","Semaine","Неделя","Uge"]
[75,"Day","Tag","Giorno","Jour","День","Dag"]
[76,"Hour","Stunde","Ora","Heure","Час","Time"]
[77,"30 Min.","30 Min.","30 Min.","30 Min.","30 мин.","30 min."]
[78,"20 Min.","20 Min.","20 Min.","20 Min.","20 мин.","20 min."]
[79,"15 Min.","15 Min.","15 Min.","15 Min.","15 мин.","15 min."]
[80,"10 Min.","10 Min.","10 Min.","10 Min.","10 мин.","10 min."]
[81,"5 Min.","5 Min.","5 Min.","5 Min.","5 мин.","5 min."]
[82,"1 Min.","1 Min.","1 Min.","1 Min.","1 мин.","1 min."]
[83,"Weekdays","Arbeitstage","Sett. lavorativa","Jours ouvrés","Дни недели","Ugedage"]
[84,"Calendar days","Kalendertage","Sett. standard","Jours de demaine","Календарные дни","Kalenderdage"]
[85,"DD.MM.YY","TT.MM.JJ","GG.MM.AA","JJ.MM.AA","ДД.ММ.ГГ.","DD.MM.ÅÅ"]
[86,"MM/DD/YY","MM/TT/JJ","MM/GG/AA","MM/JJ/AA","ММ/ДД/ГГ","MM/DD/ÅÅ"]
[87,"MM-DD-YY","MM-TT-JJ","MM-GG-AA","MM-JJ-AA","ММ-ДД-ГГ","MM-DD-ÅÅ"]
[88,"YY-MM-DD","JJ-MM-TT","AA-MM-GG","AA-MM-JJ","ГГ-ММ-ДД","ÅÅ-MM-DD"]
[89,"horizontal","horizontal","orizzontale","horizontal","горизонтально","Vandret"]
[90,"vertical","vertikal","verticale","vertical","вертикально","Lodret"]
[91,"Please select a valid value","Bitte wählen Sie einen gültigen Wert","Per favore scegliere un valore valido","Merci de selectionner une valeur valide","Пожалуйста выберите верное значение","Vælg venligst en gyldig værdi"]
[]
[]
[null,"[Worksheet Gantt-Chart]","[Worksheet Gantt-Chart]","[Worksheet Gantt-Chart]","[Worksheet Gantt-Chart]","[Worksheet Gantt-Chart]","[Worksheet Gantt-Chart]"]
[95,"ID","ID","ID","ID","ID","ID"]
[96,"Description","Beschreibung","Descrizione","Désignations","Описание","Benævnelse"]
[97,"Respon-","Verant-","Respon-","Ressources","Ответ-","Ansvar-"]
[98,"sible","wortlich","sabile",null,"ственный","lig"]
[99,"Prede-","Vorbe-","Pre-","Prédécesseur","Пред-","Forgæn-"]
[100,"cessor(s)","bedingung(en)","decessore",null,"шественник","ger(e)"]
[101,"Begin","Beginn","Inizio","Début","Начало","Start"]
[102,"[Date]","[Datum]","[Data]","[Date]","[Дата]","[Dato]"]
[103,"[Hrs.]","[Std.]","[Ore]","[Hrs.]","[Часы]","[Timer]"]
[104,"Duration","Dauer","Durata","Durée","Продолжительность","Varighed"]
[105,"[Days]","[Tage]","[Giorni]","[Jours]","[Дни]","[Dage]"]
[106,"End","Ende","Fine","Fin","Конец","Slut"]
[107,"Expend.","Aufwand","Risorse","Dépense","Ож.дата оконч.","Forbrug"]
[108,"PoC","PoC","PoC","Avct","ПВ","Pct."]
[109,"Remarks","Bemerkungen","Osservazioni","Notes","Заметки","Bemærkninger"]
[110,"Page","Seite","Pagina","Page","Страница","Side"]
[]
[]
[null,"[Message Boxes]","[Message Boxes]","[Message Boxes]","[Message Boxes]","[Message Boxes]","[Message Boxes]"]
[114,"Please select the time frame.","Bitte wählen Sie die Zeitspanne.","Per favore scegliere l'unita di tempo.","Veuillez choisir la période de temps.","Пожалуйста выберите временной диапазон","Vælg venligst en periode."]
[115,"The selected time frame is too long.","Die gewählte Zeitspanneist zu gross.","L'unità di tempo scelta é troppo grossa !","La période de temps choisie trop grande.","Выбранный временной диапазон слишком длинный","Den valgte periode er for lang."]
[116,"Please enter a shorter time frame.","Bitte wählen Sie einen kürzeren Zeitrahmen.","Per favore introdurre un'unità di tempo più piccola.","Veuillez choisir une plus courte période.","Пожалуйста введите более короткий временной диапазон","Indtast venligst en kortere periode."]
[117,"The project data has been entered / updated.","Das Projekt wurde eingegeben / aktualisiert.","Il progetto é stato creato/aggiornato.","Le projet a été actualisé.","Данные проекта были введены / обновлены.","Projekt data er blevet tilføjet / opdateret."]
[118,"The re-calculation may change your data.","Die Neuberechnung kann Ihre Daten verändern.","L'aggiornamento può cambiare i vostri dati.","Le calcul peut modifier vos données.","Перерасчет может изменить Ваши данные.","Genberegningen vil måske ændre dine data."]
[119,"Proceed?","Soll die Neuberechnung durchgeführt werden?","Continuare con l'aggiornamento ?","Voulez-vous continuer ?","Продолжить?","Fortsæt ?"]
[120,"The re-calculation has been done.","Die Neuberechnung wurde durchgeführt.","L'aggiornamento é stato eseguito.","Le calcul est terminé.","Перерасчет произведен.","Genberegningen er udført."]
[121,"No changes have been made.","Es wurden keine Änderungen vorgenommen.","Non é stato effettuato alcun cambiamento.","Aucune modification n'a été effectuée.","Изменения не были произведены","Ingen ændringer er foretaget."]
[122,"You have successfully entered the registration data.","Sie haben die korrekten Registrierungs-Daten eingegeben.","Il numero di serie é stato introdotto correttamente.","Les données ont été correctement saisies.","Вы успешно ввели регитрационные данные.","Dine indtastede registreringsdata er tilføjet korrekt."]
[123,"Invalid registration key.","Ungültiger Registrierungs-Schlüssel.","Numero di serie non valido.","Numéro de série invalide.","Неверный регистрационный ключ.","Registreringsnøgle er ikke gyldig."]
[124,"Please check that you entered the exact information.","Bitte prüfen Sie, ob Sie die korrekten Information eingegeben haben.","Per favore controllare se le informazioni introdotto sono corrette.","Merci de vérifier les informations saisies.","Пожалуйста проверьте, что Вы ввели точную информацию","Kontrollér venligst at dine informationer er indtastet korrekt."]
[125,"You basic data contains invalid or missing data.","Ihre Basisdaten enthalten ungültige oder unvollständige Daten.","Le informazioni di base contengono dei dati non corretti o incompleti.","Vos données de base contiennent des données invalides ou incomplètes.","Ваши исходные данные неверны или пропущены","Dine oplysninger indeholder ugyldige eller manglende data."]
[126,"The entered data in the process sheet is not valid or incomplete.","Sie haben unvollständige oder fehlerhafte Daten in die Zeittabelle eingegeben.","Sono stati introdotti dei dati sbagliati oppure mancanti nella tabella del tempo.","Les données saisies dans la feuille de process sont invalides ou incomplètes.","Введенные данные на листе процесса неверны или не полны.","De indtastede data i fremdriftskemaet er ugyldige eller mangelfulde."]
[]
[]
[null,"[Other Settings]","[Other Settings]","[Other Settings]","[Other Settings]","[Other Settings]","[Other Settings]"]
[130,"January","Januar","Gennaio","Janvier","Январь","Januar"]
[131,"February","Februar","Febbraio","Février","Февраль","Februar"]
[132,"March","März","Marzo","Mars","Март","Marts"]
[133,"April","April","Aprile","Avril","Апрель","April"]
[134,"May","Mai","Maggio","Mai","Май","Maj"]
[135,"June","Juni","Giugno","Juin","Июнь","Juni"]
[136,"July","Juli","Luglio","Juillet","Июль","Juli"]
[137,"August","August","Agosto","Août","Август","August"]
[138,"September","September","Settembre","Septembre","Сентябрь","September"]
[139,"October","Oktober","Ottobre","Octobre","Октябрь","Oktober"]
[140,"November","November","Novembre","Novembre","Ноябрь","November"]
[141,"December","Dezember","Dicembre","Décembre","Декабрь","December"]
[142,"1st Quarter","1. Quartal","1. Trimestre","1. Trimestre","1-й квартал","1 Kvartal"]
[143,"2nd Quarter","2. Quartal","2. Trimestre","2. Trimestre","2-й квартал","2 kvartal"]
[144,"3rd Quarter","3. Quartal","3. Trimestre","3. Trimestre","3-й квартал","3 Kvartal"]
[145,"4th Quarter","4. Quartal","4. Trimestre","4. Trimestre","4-й квартал","4 Kvartal"]
[146,"CW","KW","SETT","SEM","КН","Uge"]
[147,"Sheet","Tabelle","Tabella","Feuille","Лист","Ark"]